bitfinex-derivatives/quotes_SOLF0:USTF0_20241021
["timestamp","ask_amount","ask_price","bid_price","bid_amount"]
[1729505539585,2.9915,167.22,167.18,2.9921]
[1729505542178,2.92634113,167.24,167.23,2.9912]
[1729505542383,2.9907,167.26,167.17,4.42]
[1729505542983,2.97208762,167.26,167.23,2.991]
[1729505543195,8.7548,167.27,167.23,2.991]
[1729505543777,11.76852021,167.27,167.23,2.991]
[1729505544192,8.77802021,167.27,167.23,2.991]
[1729505544484,2.9907,167.26,167.23,2.991]
[1729505544985,8.77802021,167.27,167.21,2.9914]
[1729505545688,2.991,167.25,167.22,2.9914]
[1729505546391,8.77802021,167.27,167.17,4.42]
[1729505546595,2.9908,167.26,167.22,2.9913]
[1729505546991,8.77802021,167.27,167.17,4.42]
[1729505547288,11.76852021,167.27,167.24,2.991]
[1729505547496,11.76852021,167.27,167.17,4.42]
[1729505547690,11.76852021,167.27,167.23,2.9911]
[1729505547891,8.77802021,167.27,167.23,2.9911]
[1729505548091,2.9908,167.26,167.23,2.9911]
[1729505550191,11.30879616,167.26,167.23,2.9911]
[1729505550390,15.79784941,167.26,167.23,2.9911]
[1729505550595,4.48905325,167.25,167.23,2.9911]
[1729505551405,4.48905325,167.25,167.17,4.42]
[1729505551592,11.30869616,167.26,167.23,2.9912]
[1729505551793,4.48802869,167.25,167.23,2.9912]
[1729505554902,4.48802869,167.25,167.24,2.991]
[1729505555502,20.08651637,167.27,167.24,2.991]
[1729505555693,4.48693246,167.26,167.24,2.991]
[1729505557303,11.76852021,167.27,167.24,2.991]
[1729505558702,11.76852021,167.27,167.25,2.9908]
[1729505560403,7.34852021,167.27,167.25,2.9908]
[1729505563005,2.99096022,167.3,167.28,2.9902]
[1729505563202,7.4099,167.31,167.28,2.9902]
[1729505563706,3.02892408,167.3,167.28,2.9902]
[1729505565112,3.02892408,167.3,167.29,2.9901]
[1729505565313,12.73799616,167.32,167.22,4.42]
[1729505565606,12.81212627,167.31,167.22,4.42]
[1729505566401,12.81212627,167.31,167.24,2.9909]
[1729505566402,2.9899,167.3,167.24,2.9909]
[1729505566601,8.31799616,167.31,167.22,4.42]
[1729505566803,12.8136575,167.3,167.22,4.42]
[1729505567104,7.48586134,167.29,167.22,4.42]
[1729505567305,2.9902,167.29,167.22,4.42]
[1729505567504,2.9902,167.29,167.26,2.9906]
[1729505569113,8.31799616,167.3,167.22,4.42]
[1729505569404,2.9904,167.28,167.25,2.9907]
[1729505570207,8.31799616,167.29,167.22,4.42]
[1729505570411,11.30819616,167.29,167.26,2.9906]
[1729505570606,11.30819616,167.29,167.18,2.5588]
[1729505570607,4.49495507,167.28,167.18,2.5588]
[1729505570803,17.23295123,167.28,167.18,2.5588]
[1729505571005,14.14025123,167.27,167.13,5.986]
[1729505571314,2.9908,167.25,167.21,2.9914]
[1729505571814,8.31799616,167.26,167.14,4.42]
[1729505572114,12.81422919,167.25,167.14,4.42]
[1729505572305,2.9907,167.26,167.14,4.42]
[1729505572811,2.9907,167.26,167.21,2.9914]
[1729505574105,2.9907,167.26,167.14,4.42]
[1729505574308,2.9907,167.26,167.22,2.9913]
[1729505576015,2.9907,167.26,167.18,4.42]
[1729505576312,2.9907,167.26,167.23,2.9911]
[1729505576501,5.6003,167.27,167.18,4.42]
[1729505576806,5.7473,167.27,167.25,2.9907]
[1729505577212,5.7473,167.27,167.18,6.9763]
[1729505577506,5.7473,167.27,167.26,2.9907]
[1729505580817,5.7473,167.27,167.24,2.9909]
[1729505581715,5.7473,167.27,167.18,6.9763]
[1729505581918,5.7473,167.27,167.25,2.9908]
[1729505582611,5.7473,167.27,167.18,6.9763]
[1729505582918,2.9907,167.26,167.23,2.9911]
[1729505585520,2.9907,167.26,167.24,2.991]
[1729505586415,5.7473,167.27,167.24,2.991]
[1729505586619,8.7379,167.27,167.24,2.991]
[1729505593424,8.31799616,167.3,167.22,4.42]
[1729505593630,12.73799616,167.31,167.22,4.42]
[1729505593931,4.50382199,167.3,167.22,4.42]
[1729505594118,4.50382199,167.3,167.29,2.99]
[1729505595424,8.79874117,167.32,167.29,2.99]
[1729505595823,9.62289616,167.34,167.22,4.42]
[1729505596023,14.04759616,167.36,167.23,5.9824]
[1729505596223,4.42,167.36,167.33,2.9893]
[1729505596425,4.42,167.36,167.27,4.42]
[1729505596820,4.42,167.36,167.34,2.9891]
[1729505597029,4.42,167.36,167.27,4.42]
[1729505597225,4.42,167.39,167.27,7.42682817]
[1729505597426,4.42,167.39,167.37,2.9887]
[1729505598328,1.2867,167.4,167.37,2.9887]
[1729505598529,1.2867,167.4,167.28,1.3464]
[1729505598530,4.42,167.39,167.28,1.3464]
[1729505598725,4.42,167.39,167.34,2.9891]
[1729505599921,2.9886,167.38,167.34,2.9891]
[1729505602524,2.9888,167.37,167.28,1.3464]
[1729505602721,2.9888,167.37,167.34,2.9892]
[1729505605434,2.9885,167.38,167.34,2.9892]
[1729505605828,4.42,167.39,167.34,2.9892]
[1729505606533,2.9887,167.37,167.34,2.9892]
[1729505607328,22.37,167.39,167.24,2.5591]
[1729505607528,1.2443,167.36,167.26,4.4]
[1729505607723,4.4,167.35,167.26,4.4]
[1729505607926,4.2901,167.34,167.26,4.4]
[1729505608132,1.3008,167.34,167.26,4.4]
[1729505609741,4.2901,167.34,167.26,4.4]
[1729505610034,1.3008,167.34,167.26,4.4]
[1729505611535,1.3008,167.34,167.33,2.9894]
[1729505612634,1.2443,167.36,167.26,7.43692857]
[1729505612635,4.4,167.36,167.26,7.43692857]
[1729505612833,4.4,167.36,167.35,2.989]
[1729505613941,7.389,167.36,167.33,2.9893]
[1729505616338,4.4,167.36,167.3,2.9898]
[1729505616649,1.3578,167.35,167.3,2.9898]
[1729505616839,2.9893,167.34,167.3,2.9898]
[1729505617147,4.3257,167.34,167.31,2.9897]
[1729505617638,1.3364,167.34,167.26,4.4]
[1729505618843,1.3364,167.34,167.31,2.9896]
[1729505620647,1.3364,167.34,167.32,2.9896]
[1729505621441,1.3364,167.34,167.24,6.9591]
[1729505621651,1.3364,167.34,167.33,2.9894]
[1729505622747,1.3364,167.34,167.24,6.9591]
[1729505624748,4.3258,167.34,167.24,6.9591]
[1729505625564,4.3258,167.34,167.31,2.9897]
[1729505626637,2.9894,167.33,167.31,2.9897]
[1729505626849,4.4,167.32,167.31,2.9897]
[1729505627049,7.3789343,167.32,167.31,2.9897]
[1729505627843,7.3789343,167.32,167.3,2.9899]
[1729505628043,7.3789343,167.32,167.24,5.6767]
[1729505628647,7.3789343,167.32,167.31,2.9898]
[1729505631644,4.4,167.32,167.31,2.9898]
[1729505647260,7.45046547,167.32,167.31,2.9898]
[1729505651264,3.05046547,167.32,167.31,2.9898]
[1729505651463,89.99151413,167.39,167.26,2.99299988]
[1729505651669,89.99151413,167.39,167.27,4.4]
[1729505651870,94.39151413,167.39,167.27,4.4]
[1729505652467,97.37981413,167.39,167.36,2.9888]
[1729505653363,89.99151413,167.39,167.38,2.9885]
[1729505653666,94.39151413,167.39,167.38,2.9885]
[1729505654069,89.99151413,167.39,167.38,2.9885]
[1729505654366,94.39151413,167.39,167.38,2.9885]
[1729505655664,89.99151413,167.39,167.38,2.9885]
[1729505655866,4.4,167.4,167.31,4.4]
[1729505656170,1.2486,167.43,167.32,2.6809]
[1729505656369,5.6486,167.43,167.42,2.9878]
[1729505656564,4.18026427,167.43,167.42,2.9878]
[1729505656765,2.93166427,167.43,167.42,2.9878]
[1729505657164,2.6485,167.46,167.35,4.4]
[1729505657165,7.0485,167.46,167.35,4.4]
[1729505657365,5.6901,167.46,167.32,2.6809]
[1729505657564,5.6901,167.46,167.35,4.4]
[1729505657970,2.9875,167.44,167.35,4.4]
[1729505658762,8.63387309,167.46,167.35,4.4]
[1729505658963,11.62107309,167.46,167.42,2.9877]
[1729505661366,8.63387309,167.46,167.43,2.9875]
[1729505661674,8.63387309,167.46,167.35,4.4]
[1729505662967,8.63387309,167.46,167.43,2.9875]
[1729505663170,11.62107309,167.46,167.35,4.4]
[1729505663483,11.62107309,167.46,167.42,2.9877]
[1729505663765,8.63387309,167.46,167.42,2.9877]
[1729505664171,2.9873,167.45,167.42,2.9877]
[1729505665876,11.62107309,167.46,167.35,4.4]
[1729505666568,8.63387309,167.46,167.35,4.4]
[1729505667577,8.63387309,167.46,167.44,2.9874]
[1729505667775,8.63387309,167.46,167.35,4.4]
[1729505668176,8.63387309,167.46,167.42,2.9877]
[1729505668177,11.62097309,167.46,167.42,2.9877]
[1729505673475,11.62097309,167.46,167.42,2.9876]
[1729505675284,8.63387309,167.46,167.44,2.9874]
[1729505676086,7.34377309,167.46,167.45,2.9873]
[1729505681381,7.34377309,167.46,167.44,2.9874]
[1729505681681,7.34377309,167.46,167.36,3.00849695]
[1729505682983,7.34377309,167.46,167.45,2.9873]
[1729505684980,2.94377309,167.46,167.45,2.9873]
[1729505685185,4.4,167.47,167.45,2.9873]
[1729505685689,2.95538381,167.46,167.45,2.9873]
[1729505686395,7.36884184,167.46,167.45,2.9873]
[1729505700398,1.3045,167.48,167.45,2.9873]
[1729505700594,1.2943,167.52,167.39,4.4]
[1729505700796,2.98331862,167.5,167.4,2.5417]
[1729505701100,7.38331862,167.5,167.4,2.5417]
[1729505701299,7.38331862,167.5,167.4,5.54325882]
[1729505701497,2.98331862,167.5,167.4,5.54325882]
[1729505701998,2.98331862,167.5,167.49,2.9865]
[1729505702202,2.591,167.55,167.49,2.9865]
[1729505702394,2.591,167.55,167.54,2.9857]
[1729505702701,1.2422,167.55,167.54,2.9857]
[1729505702892,1.2422,167.55,167.44,4.4]
[1729505704702,1.2422,167.55,167.53,2.9857]
[1729505705292,1.2422,167.55,167.44,110.89393693]
[1729505705498,1.3437,167.54,167.44,110.89393693]
[1729505705891,1.3437,167.54,167.42,4.4]
[1729505706402,2.9865,167.5,167.43,2.9875]
[1729505706603,5.7424,167.49,167.4,2.5417]
[1729505706997,5.7424,167.49,167.46,2.9869]
[1729505707999,2.9869,167.47,167.44,2.9874]
[1729505708307,5.7424,167.49,167.44,2.9874]
[1729505708503,5.7424,167.49,167.38,4.4]
[1729505708803,7.0135,167.49,167.43,2.9876]
[1729505709198,7.0135,167.49,167.38,4.4]
[1729505709404,2.9868,167.48,167.44,2.9873]
[1729505710808,7.0135,167.49,167.38,4.4]
[1729505711704,2.9873,167.46,167.36,117.84369062]
[1729505711904,4.4,167.45,167.36,117.84369062]
[1729505712103,4.4,167.45,167.41,2.9878]
[1729505712311,4.4,167.45,167.36,117.84369062]
[1729505712807,4.4,167.45,167.36,113.44369062]
[1729505713002,2.9874,167.44,167.36,113.44369062]
[1729505713306,4.4,167.45,167.41,2.9879]
[1729505713507,7.3874,167.45,167.41,2.9879]
[1729505714910,2.9875,167.44,167.41,2.9879]
[1729505715605,2.9878,167.42,167.39,2.9882]
[1729505715799,1.2803,167.48,167.3,2.6345]
[1729505715800,4.4,167.41,167.3,2.6345]
[1729505716006,4.4,167.4,167.3,2.6345]
[1729505716407,7.3882,167.4,167.37,2.9887]
[1729505716607,4.4,167.4,167.37,2.9887]
[1729505717707,7.3882,167.4,167.37,2.9887]
[1729505719704,7.3882,167.4,167.3,2.6345]
[1729505719908,7.3882,167.4,167.36,2.9888]
[1729505721417,4.4,167.4,167.3,2.6345]
[1729505721620,2.9885,167.39,167.35,2.989]
[1729505721913,4.4,167.4,167.35,2.989]
[1729505722113,2.9884,167.39,167.35,2.989]
[1729505724521,4.4,167.4,167.24,5.9821]
[1729505724708,4.4,167.4,167.25,6.9318]
[1729505725113,2.9886,167.38,167.34,2.9891]
[1729505725715,2.9886,167.38,167.35,2.989]
[1729505729809,2.9886,167.38,167.27,4.4]
[1729505730013,4.3015,167.37,167.34,2.9891]
[1729505730220,4.4,167.36,167.34,2.9891]
[1729505734619,7.3889,167.36,167.33,2.9894]
[1729505734815,7.3889,167.36,167.26,4.4]
[1729505735917,7.3889,167.36,167.34,2.9892]
[1729505736919,2.9889,167.36,167.34,2.9892]
[1729505737120,4.4,167.35,167.34,2.9892]
[1729505737620,4.4,167.35,167.26,4.4]
[1729505737824,5.7339,167.35,167.24,5.9821]
[1729505739022,5.7339,167.35,167.33,2.9893]
[1729505739323,5.7339,167.35,167.24,5.9821]
[1729505740025,5.7339,167.35,167.21,2.6222]
[1729505740226,5.7339,167.35,167.22,4.4]
[1729505740844,2.9896,167.33,167.29,2.9899]
[1729505741839,5.7339,167.35,167.29,2.9899]
[1729505742036,2.9896,167.33,167.29,2.9899]
[1729505743344,1.2464,167.34,167.29,2.9899]
[1729505743548,2.9896,167.32,167.29,2.9899]
[1729505743749,4.4,167.31,167.29,2.9899]
[1729505744147,4.4,167.31,167.21,1.3072]
[1729505744347,1.3613,167.3,167.21,1.3072]
[1729505744851,2.9901,167.29,167.21,1.3072]
[1729505745349,2.9901,167.29,167.25,2.9907]
[1729505746049,2.9903,167.28,167.25,2.9907]
[1729505746247,4.4,167.27,167.25,2.9907]
[1729505746441,4.4,167.27,167.21,1.3072]
[1729505746745,7.3905,167.27,167.24,2.9909]
[1729505746945,7.3905,167.27,167.18,4.4]
[1729505747345,7.3905,167.27,167.23,2.991]
[1729505747543,4.3489,167.29,167.17,1.297]
[1729505747848,4.4,167.29,167.28,2.9902]
[1729505749147,5.7613,167.3,167.28,2.9902]
[1729505750750,3.01012087,167.32,167.2,4.4]
[1729505751051,4.4,167.31,167.2,4.4]
[1729505751351,7.45124095,167.31,167.2,4.4]
[1729505751856,2.9901,167.29,167.26,2.9906]
[1729505752058,1.318,167.3,167.2,4.4]
[1729505752255,1.318,167.3,167.17,1.297]
[1729505752553,2.9908,167.26,167.22,2.9914]
[1729505752753,4.4,167.25,167.22,2.9914]
[1729505752953,4.4,167.25,167.17,1.297]
[1729505753153,4.4,167.25,167.23,2.9912]
[1729505754049,4.4,167.25,167.22,2.9913]
[1729505754352,4.4,167.25,167.17,1.297]
[1729505754658,2.9912,167.23,167.17,1.297]
[1729505755652,2.9912,167.23,167.19,2.9919]
[1729505756349,2.9914,167.22,167.18,2.9921]
[1729505756547,17.95,167.29,167.12,1.2399]
[1729505756548,4.4,167.21,167.12,2.4964]
[1729505756750,4.4,167.2,167.12,2.4964]
[1729505756947,2.9919,167.19,167.15,2.9925]
[1729505757347,4.4,167.2,167.12,1.2399]
[1729505757550,4.31146141,167.21,167.12,1.2399]
[1729505757855,4.4,167.2,167.12,1.2399]
[1729505759957,4.4,167.2,167.18,2.9921]
[1729505760552,4.3139,167.24,167.2,2.9917]
[1729505760754,4.4,167.23,167.2,2.9917]
[1729505760958,2.93160156,167.22,167.2,2.9917]
[1729505762946,2.93160156,167.22,167.12,5.6399]
[1729505763157,4.4,167.22,167.21,2.9915]
[1729505763357,7.34807291,167.22,167.21,2.9915]
[1729505764159,2.94807291,167.22,167.21,2.9915]
[1729505764359,2.94807291,167.22,167.12,5.6399]
[1729505764360,4.4,167.23,167.12,5.6399]
[1729505764561,4.4,167.23,167.22,2.9914]
[1729505765959,4.4,167.25,167.24,2.991]
[1729505766262,4.4,167.27,167.16,7.36185237]
[1729505766560,94.4411625,167.3,167.27,2.9904]
[1729505767061,97.4311625,167.3,167.27,2.9904]
[1729505767854,94.4411625,167.3,167.27,2.9904]
[1729505769155,4.4,167.3,167.29,2.9901]
[1729505771865,4.4,167.32,167.31,2.9897]
[1729505772057,7.3619278,167.32,167.31,2.9897]
[1729505772965,68.5706,167.38,167.25,1.2509]
[1729505773170,7.3887,167.37,167.33,2.9893]
[1729505774369,4.4,167.37,167.25,2.5893]
[1729505775065,4.4,167.37,167.25,5.50981911]
[1729505775470,7.3887,167.37,167.28,2.9902]
[1729505775671,7.3887,167.37,167.25,5.50981911]
[1729505775872,4.4,167.36,167.25,5.50981911]
[1729505776670,4.4,167.36,167.25,2.5893]
[1729505777367,7.389,167.36,167.31,2.9896]
[1729505777568,4.4,167.36,167.31,2.9896]
[1729505777872,2.9891,167.35,167.31,2.9896]
[1729505778661,2.9894,167.34,167.29,2.9899]
[1729505778861,2.9894,167.34,167.25,6.9893]
[1729505780070,4.4,167.34,167.25,10.0461609]
[1729505780667,4.4,167.34,167.33,2.9894]
[1729505780872,4.4,167.37,167.25,10.0461609]
[1729505781764,70.2628,167.38,167.25,10.0461609]
[1729505782072,4.4,167.37,167.34,2.9891]
[1729505783968,4.4,167.37,167.35,2.9889]
[1729505784169,67.2742,167.38,167.25,5.6461609]
[1729505784170,1.2865,167.38,167.25,5.6461609]
[1729505784376,5.6865,167.38,167.26,4.4]
[1729505785470,5.6865,167.38,167.37,2.9887]
[1729505785872,2.95316782,167.41,167.4,2.9882]
[1729505786074,4.4,167.41,167.4,2.9882]
[1729505786269,1.2825,167.46,167.34,4.4]
[1729505786472,1.2825,167.46,167.34,7.45862869]
[1729505786473,4.4,167.43,167.34,7.45862869]
[1729505786871,2.9874,167.45,167.34,4.4]
[1729505787178,4.4,167.44,167.34,4.4]
[1729505787378,4.4,167.44,167.43,2.9876]
[1729505787578,1.2825,167.46,167.38,4.4]
[1729505787780,1.2825,167.46,167.39,1.2388]
[1729505787972,4.4,167.47,167.39,1.2388]
[1729505788169,4.4,167.47,167.45,2.9873]
[1729505788677,4.4,167.48,167.47,2.9869]
[1729505788878,4.4,167.48,167.39,1.2388]
[1729505789674,2.5391,167.47,167.39,1.2388]
[1729505789877,2.5391,167.47,167.35,4.4]
[1729505790376,3.8594,167.47,167.35,4.4]
[1729505790577,21.8094,167.47,167.33,1.289]
[1729505790981,21.8094,167.47,167.35,2.989]
[1729505791379,3.8594,167.47,167.33,1.289]
[1729505791683,3.8594,167.47,167.37,2.9886]
[1729505791978,2.9873,167.45,167.41,2.988]
[1729505792176,4.4,167.44,167.33,1.289]
[1729505792577,2.9878,167.42,167.33,1.289]
[1729505793077,4.4,167.44,167.33,1.289]
[1729505793683,2.9881,167.41,167.37,2.9887]
[1729505793883,8.63284472,167.4,167.26,70.6011]
[1729505794087,4.4,167.39,167.27,1.2287]
[1729505794291,2.9886,167.38,167.34,2.9891]
[1729505795785,2.9889,167.37,167.33,2.9894]
[1729505795985,4.4,167.39,167.28,115.38455931]
[1729505796280,5.6403,167.39,167.28,115.38455931]
[1729505796481,5.6403,167.39,167.28,110.98455931]
[1729505796891,2.9892,167.35,167.31,2.9897]
[1729505797185,4.4,167.35,167.28,110.98455931]
[1729505798593,4.4,167.35,167.27,1.2287]
[1729505798792,2.9893,167.34,167.29,2.99]
[1729505799086,4.4,167.35,167.27,1.2287]
[1729505799785,4.4,167.35,167.21,1.2383]
[1729505799988,4.4,167.35,167.22,5.6746]
[1729505800192,2.9896,167.33,167.29,2.99]
[1729505801289,2.9896,167.33,167.22,5.6746]
[1729505801488,2.9896,167.33,167.3,2.9899]
[1729505802394,4.4,167.35,167.22,5.6746]
[1729505802587,2.9899,167.31,167.27,2.9903]
[1729505802794,4.4,167.31,167.22,5.6746]
[1729505803494,4.4,167.31,167.29,2.99]
[1729505803690,4.4,167.31,167.22,5.6746]
[1729505805787,4.4,167.31,167.29,2.9901]
[1729505805991,4.4,167.31,167.22,5.6746]
[1729505806895,7.3898,167.31,167.27,2.9903]
[1729505808596,7.3898,167.31,167.28,2.9903]
[1729505808903,7.38599533,167.31,167.22,1.2746]
[1729505809105,1.3283,167.3,167.22,1.2746]
[1729505809893,4.3183,167.3,167.26,2.9905]
[1729505810504,4.3183,167.3,167.27,2.9905]
[1729505812099,1.3283,167.3,167.27,2.9904]
[1729505813912,4.3183,167.3,167.27,2.9904]
[1729505819299,2.9902,167.29,167.26,2.9906]
[1729505819506,1.3283,167.3,167.21,4.4]
[1729505819703,1.3283,167.3,167.18,4.4]
[1729505820009,2.9906,167.27,167.18,4.4]
[1729505820205,4.4,167.26,167.18,4.4]
[1729505820509,7.3908,167.26,167.18,4.4]
[1729505821405,7.3908,167.26,167.23,2.9911]
[1729505822210,2.991,167.25,167.21,2.9914]
[1729505822411,4.2289,167.25,167.21,2.9914]
[1729505822911,1.2379,167.25,167.17,1.3274]
[1729505823112,4.4,167.29,167.17,1.3274]
[1729505823312,4.4,167.29,167.18,1.2769]
[1729505823814,4.4,167.29,167.28,2.9903]
[1729505824109,1.3283,167.3,167.2,4.4]
[1729505824511,1.3283,167.3,167.29,2.9901]
[1729505825808,4.3184,167.3,167.2,4.4]
[1729505826003,1.3283,167.3,167.2,4.4]
[1729505826412,1.3283,167.3,167.29,2.9901]
[1729505827215,1.3283,167.3,167.28,2.9902]
[1729505828217,1.3283,167.3,167.29,2.9901]
[1729505831108,2.9893,167.34,167.31,2.9897]
[1729505831309,22.18132309,167.41,167.24,4.4]
[1729505831513,22.18132309,167.45,167.25,5.9815]
[1729505831713,1.2608,167.46,167.25,4.25850302]
[1729505831914,2.9875,167.44,167.39,2.9882]
[1729505832118,4.4,167.43,167.39,2.9882]
[1729505832310,4.4,167.43,167.4,2.9881]
[1729505832514,4.4,167.43,167.33,4.4]
[1729505833516,4.4,167.43,167.39,2.9883]
[1729505835623,4.4,167.43,167.4,2.9881]
[1729505836321,7.3876,167.43,167.39,2.9883]
[1729505837418,4.4,167.43,167.26,5.9813]
[1729505837619,2.9882,167.4,167.36,2.9887]
[1729505837817,3.05050188,167.4,167.26,5.9813]
[1729505838020,2.9885,167.38,167.35,2.989]
[1729505838220,4.4,167.38,167.27,4.4]
[1729505838413,4.4,167.38,167.25,4.25850302]
[1729505838617,4.4,167.38,167.26,4.4]
[1729505838815,7.38055777,167.38,167.26,4.4]
[1729505839426,10.36915777,167.38,167.26,4.4]
[1729505839618,7.38055777,167.38,167.26,4.4]
[1729505840820,7.38055777,167.38,167.35,2.989]
[1729505842120,7.38055777,167.38,167.25,1.2871]
[1729505842321,7.38055777,167.38,167.26,4.4]
[1729505842322,8.67905777,167.38,167.26,4.4]
[1729505842518,8.67905777,167.38,167.25,1.2871]
[1729505842724,2.9893,167.34,167.28,2.9901]
[1729505842922,2.9893,167.34,167.26,4.4]
[1729505842923,7.3893,167.34,167.26,4.4]
[1729505844428,4.4,167.34,167.31,2.9896]
[1729505846229,2.9896,167.32,167.27,2.9905]
[1729505846435,4.4,167.34,167.25,4.4]
[1729505847230,7.3893,167.34,167.3,2.9898]
[1729505847619,7.3893,167.34,167.25,4.4]
[1729505847818,2.9894,167.33,167.25,4.4]
[1729505848224,2.9894,167.33,167.29,2.99]
[1729505849726,4.4,167.34,167.24,1.3585]
[1729505849926,2.6535,167.32,167.24,1.3585]
[1729505850127,2.6535,167.32,167.22,4.4]
[1729505850829,2.9898,167.31,167.22,4.4]
[1729505851025,4.4,167.3,167.22,4.4]
[1729505851431,2.6535,167.32,167.22,4.4]
[1729505852026,2.6535,167.32,167.29,2.99]
[1729505853529,2.6535,167.32,167.31,2.9898]
[1729505853728,1.3109,167.32,167.31,2.9898]
[1729505853929,1.2637,167.37,167.23,1.3552]
[1729505853930,4.4,167.34,167.24,1.3056]
[1729505854331,4.4,167.34,167.27,2.9905]
[1729505854626,2.9891,167.35,167.24,1.3056]
[1729505854832,4.4,167.34,167.24,1.3056]
[1729505855231,4.4,167.34,167.32,2.9896]
[1729505858225,2.5391,167.37,167.26,4.4]
[1729505858428,4.4,167.36,167.26,4.4]
[1729505859933,4.4,167.36,167.34,2.9891]
[1729505862637,2.98055777,167.38,167.37,2.9887]
[1729505864440,4.4,167.4,167.39,2.9883]
[1729505864643,4.4,167.41,167.31,2.5778]
[1729505864935,2.92760598,167.4,167.31,2.5778]
[1729505865442,2.92760598,167.4,167.39,2.9883]
[1729505866940,1.2275,167.42,167.34,4.4]
[1729505867131,1.2275,167.42,167.41,2.988]
[1729505874842,4.2153,167.42,167.39,2.9882]
[1729505882145,4.4,167.43,167.33,4.4]
[1729505882350,4.4,167.45,167.33,4.4]
[1729505882751,4.4,167.45,167.36,2.9888]
[1729505882947,4.4,167.45,167.33,4.4]
[1729505883652,4.4,167.45,167.42,2.9877]
[1729505885453,7.3873,167.45,167.42,2.9877]
[1729505885651,4.4,167.45,167.4,2.988]
[1729505885847,2.9876,167.43,167.4,2.988]
[1729505886153,4.4,167.43,167.34,4.4]
[1729505887948,4.4,167.43,167.41,2.9879]
[1729505889761,7.3876,167.44,167.41,2.9879]
[1729505891152,4.4,167.44,167.43,2.9876]
[1729505891353,4.4,167.44,167.34,4.4]
[1729505893651,4.4,167.44,167.42,2.9876]
[1729505894461,7.3872,167.46,167.43,2.9875]
[1729505895263,1.2887,167.47,167.38,4.4]
[1729505895464,1.2887,167.47,167.39,5.6717]
[1729505895662,2.9869,167.48,167.39,5.6717]
[1729505895863,7.3869,167.48,167.39,5.6717]
[1729505896466,7.3869,167.48,167.45,2.9871]
[1729505897067,7.3869,167.48,167.46,2.987]
[1729505897459,4.4,167.48,167.46,2.987]
[1729505898258,5.90883766,167.49,167.47,2.9869]
[1729505898259,2.92223766,167.49,167.47,2.9869]
[1729505898564,4.4,167.51,167.4,1.2654]
[1729505898764,3.04073529,167.51,167.4,1.2654]
[1729505899068,7.3861,167.52,167.49,2.9865]
[1729505899267,22.18132309,167.53,167.43,4.4]
[1729505899463,7.3859,167.53,167.5,2.9862]
[1729505899661,4.4,167.53,167.43,4.4]
[1729505899867,7.33489726,167.53,167.42,4.4]
[1729505900062,2.9868,167.48,167.4,5.6654]
[1729505900464,4.4,167.49,167.4,5.6654]
[1729505900667,7.3867,167.49,167.45,2.9871]
[1729505902572,4.4,167.49,167.48,2.9867]
[1729505902767,1.321,167.51,167.4,5.6654]
[1729505903269,1.321,167.51,167.4,8.66522475]
[1729505903463,1.321,167.51,167.4,5.6654]
[1729505903871,29.56742309,167.52,167.48,2.9866]
[1729505904576,25.16742309,167.52,167.48,2.9866]